[Event "FIDE World Cup G12-A 2024"]
[Site "Batumi"]
[Date "2024.06.23"]
[Round "1.9"]
[White "Xikmatkhonova, Mokhinur"]
[Black "Potikha, Shelley"]
[Result "1-0"]
[ECO "A40"]
[WhiteElo "1706"]
[BlackElo "1464"]
[Annotator "NA RC"]
[PlyCount "59"]
[EventDate "2024.06.23"]
[EventType "swiss"]
[EventCountry "GEO"]
[SourceTitle "playchess.com"]
[Source "ChessBase"]
[SourceQuality "1"]
[TimeControl "5400+30"]

1. d4 {[%emt 0:00:04]} e6 {[%emt 0:00:05]} 2. Nc3 {[%emt 0:00:09]} Bb4 {[%emt 0:00:05]} 3. Bf4 {[%emt 0:00:19]} Nf6 {[%emt 0:00:15]} 4. e3 {[%emt 0:00:07]} Nd5 {[%emt 0:02:57]} 5. Nge2 {[%emt 0:00:12]} Nxf4 {[%emt 0:02:02]} 6. Nxf4 {[%emt 0:00:08]} d5 {[%emt 0:01:43]} 7. g3 {[%emt 0:05:34]} c5 {[%emt 0:10:20]} 8. Bg2 {[%emt 0:11:48]} Qa5 {[%emt 0:05:27]} 9. Qd3 {[%emt 0:09:37]} Nc6 {[%emt 0:02:59]} 10. O-O {[%emt 0:00:45]} cxd4 {[%emt 0:02:55]} 11. exd4 {[%emt 0:00:23]} O-O {[%emt 0:01:14]} 12. Nce2 {[%emt 0:04:35]} Bd6 {[%emt 0:06:55]} 13. c3 {[%emt 0:01:50]} b5 {[%emt 0:03:32]} 14. b4 {[%emt 0:00:43]} Qb6 {[%emt 0:01:39]} 15. Qe3 {[%emt 0:06:17]} a5 {[%emt 0:02:01]} 16. a3 {[%emt 0:01:03]} Bd7 {[%emt 0:03:56]} 17. Nh5 {[%emt 0:02:00]} h6 {[%emt 0:07:17]} 18. Qf3 {[%emt 0:01:38]} e5 {[%emt 0:07:55]} 19. Qxd5 {[%emt 0:01:31]} Ne7 {[%emt 0:06:02]} 20. Qe4 {[%emt 0:07:09]} Bf5 {[%emt 0:09:44]} 21. Qe3 {[%emt 0:06:17]} Rac8 {[%emt 0:01:09]} 22. bxa5 {[%emt 0:05:02]} Qxa5 {[%emt 0:05:00]} 23. dxe5 {[%emt 0:00:47]} Bc5 {[%emt 0:02:41]} 24. Qf3 {[%emt 0:04:04]} Be6 {[%emt 0:03:28]} 25. Nef4 {[%emt 0:03:28]} Ng6 {[%emt 0:01:38]} 26. Nxe6 {[%emt 0:00:26]} fxe6 {[%emt 0:00:10]} 27. Qg4 {[%emt 0:00:28]} Qxc3 {[%emt 0:04:08]} 28. Qxg6 {[%emt 0:03:29]} Bxf2+ {[%emt 0:02:29]} 29. Kh1 {[%emt 0:00:45]} Qxe5 {[%emt 0:00:44]} 30. Be4 {[%emt 0:00:57]} 1-0

[Event "FIDE World Cup G12-A 2024"]
[Site "Batumi"]
[Date "2024.06.23"]
[Round "1.10"]
[White "Lipartia, Nino"]
[Black "Zavivaeva, Kristina"]
[Result "0-1"]
[ECO "B95"]
[WhiteElo "1437"]
[BlackElo "1666"]
[Annotator "NA RC"]
[PlyCount "74"]
[EventDate "2024.06.23"]
[EventType "swiss"]
[EventCountry "GEO"]
[SourceTitle "playchess.com"]
[Source "ChessBase"]
[SourceQuality "1"]
[TimeControl "5400+30"]

1. e4 {[%emt 0:00:01]} c5 {[%emt 0:00:05]} 2. Nf3 {[%emt 0:00:02]} d6 {[%emt 0:00:07]} 3. d4 {[%emt 0:00:02]} cxd4 {[%emt 0:00:07]} 4. Nxd4 {[%emt 0:00:02]} Nf6 {[%emt 0:00:07]} 5. Nc3 {[%emt 0:00:04]} a6 {[%emt 1:32:34]} 6. Bg5 {[%emt 0:01:17]} Nbd7 {[%emt 0:00:00]} 7. Nb3 {[%emt 0:04:50]} e6 {[%emt 0:00:00]} 8. Qd2 {[%emt 0:04:22]} Be7 {[%emt 0:00:00]} 9. O-O-O {[%emt 0:03:25]} b5 {[%emt 0:00:00]} 10. a3 {[%emt 0:04:07]} Bb7 {[%emt 0:00:00]} 11. f3 {[%emt 0:01:02]} O-O {[%emt 0:00:00]} 12. Bf4 {[%emt 0:01:32]} d5 {[%emt 0:00:00]} 13. exd5 {[%emt 0:02:09]} Nxd5 {[%emt 0:00:00]} 14. Ne2 {[%emt 0:09:01]} N7b6 {[%emt 0:00:00]} 15. Qe1 {[%emt 0:07:05]} Nc4 {[%emt 0:00:00]} 16. Nc3 {[%emt 0:09:24]} Bf6 {[%emt 0:00:00]} 17. Nc5 {[%emt 0:10:08]} Qe7 {[%emt 0:00:00]} 18. Bxc4 {[%emt 0:11:17]} Bxc3 {[%emt 0:00:00]} 19. bxc3 {[%emt 0:00:42]} bxc4 {[%emt 0:00:00]} 20. Rxd5 {[%emt 0:04:37]} Bxd5 {[%emt 0:00:00]} 21. Be3 {[%emt 0:01:13]} Rfc8 {[%emt 0:00:00]} 22. Qf2 {[%emt 0:01:39]} Rc6 {[%emt 0:00:00]} 23. Bd4 {[%emt 0:04:40]} Rac8 {[%emt 0:00:00]} 24. Qg3 {[%emt 0:01:51]} f6 {[%emt 0:00:00]} 25. Ne4 {[%emt 0:04:31]} e5 {[%emt 0:00:00]} 26. Bf2 {[%emt 0:02:56]} Qxa3+ {[%emt 0:00:00]} 27. Kd2 {[%emt 0:00:13]} Rd8 {[%emt 0:00:00]} 28. Ke2 {[%emt 0:01:09]} Bxe4 {[%emt 0:00:00]} 29. fxe4 {[%emt 0:00:02]} Qb2 {[%emt 0:00:00]} 30. Qe3 {[%emt 0:02:09]} Qxc2+ {[%emt 0:00:00]} 31. Kf1 {[%emt 0:00:19]} Rd1+ {[%emt 0:00:00]} 32. Be1 {[%emt 0:00:07]} Rcd6 {[%emt 0:00:00]} 33. Qf3 {[%emt 0:00:52]} R6d3 {[%emt 0:00:00]} 34. Qg4 {[%emt 0:00:31]} Rxe1+ {[%emt 0:00:00]} 35. Kxe1 {[%emt 0:00:02]} Re3+ {[%emt 0:00:00]} 36. Kf1 {[%emt 0:00:08]} Qc1+ {[%emt 0:00:00]} 37. Kf2 {[%emt 0:00:14]} Qd2+ {[%emt 0:00:00]} 0-1

[Event "FIDE World Cup G12-A 2024"]
[Site "Batumi"]
[Date "2024.06.23"]
[Round "1.11"]
[White "Mamakova, Aknur"]
[Black "Gulishyan, Eseniya"]
[Result "1-0"]
[ECO "A84"]
[WhiteElo "1648"]
[BlackElo "1434"]
[Annotator "NA RC"]
[PlyCount "87"]
[EventDate "2024.06.23"]
[EventType "swiss"]
[EventCountry "GEO"]
[SourceTitle "playchess.com"]
[Source "ChessBase"]
[SourceQuality "1"]
[TimeControl "5400+30"]

1. d4 {[%emt 0:00:04]} d5 {[%emt 0:00:05]} 2. c4 {[%emt 0:00:14]} e6 {[%emt 0:00:08]} 3. Nc3 {[%emt 0:00:05]} f5 {[%emt 0:00:05]} 4. Nf3 {[%emt 0:00:14]} Nf6 {[%emt 0:00:05]} 5. Bf4 {[%emt 0:00:08]} c6 {[%emt 0:00:10]} 6. e3 {[%emt 0:01:02]} Be7 {[%emt 0:01:43]} 7. Bd3 {[%emt 0:00:41]} O-O {[%emt 0:00:11]} 8. Qc2 {[%emt 0:00:05]} Ne4 {[%emt 0:00:08]} 9. g4 {[%emt 0:00:57]} a6 {[%emt 0:03:36]} 10. gxf5 {[%emt 0:04:04]} exf5 {[%emt 0:00:15]} 11. cxd5 {[%emt 0:00:41]} cxd5 {[%emt 0:00:04]} 12. Nxd5 {[%emt 0:03:27]} Nd6 {[%emt 0:23:43]} 13. Nxe7+ {[%emt 0:03:07]} Qxe7 {[%emt 0:03:52]} 14. Qc5 {[%emt 0:01:47]} Rd8 {[%emt 0:08:04]} 15. Bg5 {[%emt 0:03:24]} Qf8 {[%emt 0:04:27]} 16. Bxd8 {[%emt 0:01:07]} Qxd8 {[%emt 0:00:03]} 17. Ne5 {[%emt 0:03:15]} Nc6 {[%emt 0:08:16]} 18. Bc4+ {[%emt 0:02:56]} Kf8 {[%emt 0:02:43]} 19. Nf7 {[%emt 0:04:17]} Qa5+ {[%emt 0:01:31]} 20. Qxa5 {[%emt 0:00:43]} Nxa5 {[%emt 0:00:06]} 21. Nxd6 {[%emt 0:00:11]} b5 {[%emt 0:04:44]} 22. Bd3 {[%emt 0:00:45]} g6 {[%emt 0:00:44]} 23. Nxc8 {[%emt 0:00:14]} Rxc8 {[%emt 0:00:04]} 24. O-O {[%emt 0:00:21]} Rd8 {[%emt 0:02:59]} 25. Rac1 {[%emt 0:00:40]} Rd7 {[%emt 0:00:32]} 26. Rc8+ {[%emt 0:00:09]} Kg7 {[%emt 0:00:04]} 27. Rfc1 {[%emt 0:00:10]} Kh6 {[%emt 0:00:10]} 28. R1c7 {[%emt 0:00:16]} Rd6 {[%emt 0:00:20]} 29. b4 {[%emt 0:00:40]} Nc4 {[%emt 0:00:21]} 30. Bxc4 {[%emt 0:00:06]} bxc4 {[%emt 0:00:03]} 31. Rxc4 {[%emt 0:00:07]} a5 {[%emt 0:00:39]} 32. bxa5 {[%emt 0:00:17]} Ra6 {[%emt 0:00:04]} 33. R4c5 {[%emt 0:00:04]} Ra7 {[%emt 0:00:25]} 34. R8c6 {[%emt 0:00:18]} Kg5 {[%emt 0:00:30]} 35. a6 {[%emt 0:00:06]} Kg4 {[%emt 0:00:11]} 36. Rb5 {[%emt 0:00:13]} f4 {[%emt 0:01:14]} 37. Rb7 {[%emt 0:00:21]} Ra8 {[%emt 0:00:08]} 38. exf4 {[%emt 0:00:13]} Re8 {[%emt 0:00:34]} 39. Kg2 {[%emt 0:00:25]} h5 {[%emt 0:00:28]} 40. a7 {[%emt 0:00:13]} h4 {[%emt 0:00:14]} 41. h3+ {[%emt 0:00:36]} Kh5 {[%emt 0:00:16]} 42. Rb8 {[%emt 0:00:07]} g5 {[%emt 0:00:30]} 43. Rxe8 {[%emt 0:00:14]} gxf4 {[%emt 0:00:20]} 44. Re5# {[%emt 0:00:07]} 1-0